[Event "FIDE U16 Olympiad_boards_1-80"]
[Site "Eindhoven, Netherlands"]
[Date "2023.08.13"]
[Round "1.25"]
[White "Caceres Benitez, Arturo Eduardo"]
[Black "Samadov, Read"]
[Result "0-1"]
[TimeControl "2700+10"]
[WhiteElo "2153"]
[BlackElo "2355"]

1. e4 {[%clk 00:45:04]} {[%emt 00:00:15]} c5 {[%clk 00:45:17]} {[%emt
00:00:04]} 2. Nf3 {[%clk 00:45:10]} {[%emt 00:00:03]} d6 {[%clk 00:45:24]}
{[%emt 00:00:04]} 3. Bb5+ {[%clk 00:45:04]} {[%emt 00:00:15]} Nd7 {[%clk
00:45:22]} {[%emt 00:00:13]} 4. O-O {[%clk 00:45:01]} {[%emt 00:00:13]} a6
{[%clk 00:45:07]} {[%emt 00:00:25]} 5. Bxd7+ {[%clk 00:44:39]} {[%emt
00:00:32]} Bxd7 {[%clk 00:45:13]} {[%emt 00:00:04]} 6. d4 {[%clk 00:44:27]}
{[%emt 00:00:22]} cxd4 {[%clk 00:44:39]} {[%emt 00:00:44]} 7. Qxd4 {[%clk
00:44:34]} {[%emt 00:00:03]} e5 {[%clk 00:43:28]} {[%emt 00:01:21]} 8. Qd3
{[%clk 00:44:27]} {[%emt 00:00:17]} Rc8 {[%clk 00:42:27]} {[%emt 00:01:11]} 9.
Nc3 {[%clk 00:42:09]} {[%emt 00:02:28]} h6 {[%clk 00:41:44]} {[%emt 00:00:52]}
10. Nd2 {[%clk 00:39:38]} {[%emt 00:02:41]} Qc7 {[%clk 00:38:23]} {[%emt
00:03:32]} 11. Rd1 {[%clk 00:33:27]} {[%emt 00:06:21]} Nf6 {[%clk 00:37:06]}
{[%emt 00:01:27]} 12. Nf1 {[%clk 00:33:29]} {[%emt 00:00:09]} Bg4 {[%clk
00:35:28]} {[%emt 00:01:47]} 13. f3 {[%clk 00:33:28]} {[%emt 00:00:11]} Be6
{[%clk 00:35:30]} {[%emt 00:00:08]} 14. Ne3 {[%clk 00:32:40]} {[%emt 00:00:58]}
Be7 {[%clk 00:32:33]} {[%emt 00:03:07]} 15. a4 {[%clk 00:31:48]} {[%emt
00:01:02]} O-O {[%clk 00:31:03]} {[%emt 00:01:40]} 16. Ncd5 {[%clk 00:26:52]}
{[%emt 00:05:06]} Nxd5 {[%clk 00:30:35]} {[%emt 00:00:38]} 17. exd5 {[%clk
00:26:58]} {[%emt 00:00:04]} Bd7 {[%clk 00:30:41]} {[%emt 00:00:04]} 18. c4
{[%clk 00:26:18]} {[%emt 00:00:50]} f5 {[%clk 00:29:39]} {[%emt 00:01:12]} 19.
b3 {[%clk 00:22:27]} {[%emt 00:04:01]} f4 {[%clk 00:27:42]} {[%emt 00:02:07]}
20. Nc2 {[%clk 00:20:26]} {[%emt 00:02:11]} Bf5 {[%clk 00:26:04]} {[%emt
00:01:48]} 21. Qc3 {[%clk 00:20:34]} {[%emt 00:00:02]} b5 {[%clk 00:22:49]}
{[%emt 00:03:26]} 22. axb5 {[%clk 00:19:59]} {[%emt 00:00:44]} axb5 {[%clk
00:22:55]} {[%emt 00:00:04]} 23. Nb4 {[%clk 00:18:18]} {[%emt 00:01:51]} Bf6
{[%clk 00:21:22]} {[%emt 00:01:43]} 24. Ra6 {[%clk 00:13:01]} {[%emt 00:05:27]}
bxc4 {[%clk 00:20:04]} {[%emt 00:01:28]} 25. Nc6 {[%clk 00:09:48]} {[%emt
00:03:23]} cxb3 {[%clk 00:18:16]} {[%emt 00:01:59]} 26. Qxb3 {[%clk 00:09:56]}
{[%emt 00:00:01]} Ra8 {[%clk 00:15:39]} {[%emt 00:02:47]} 27. Rb6 {[%clk
00:08:13]} {[%emt 00:01:54]} Bc2 {[%clk 00:15:00]} {[%emt 00:00:47]} 28. Qxc2
{[%clk 00:07:35]} {[%emt 00:00:48]} Qxb6+ {[%clk 00:15:09]} {[%emt 00:00:02]}
29. Kh1 {[%clk 00:07:36]} {[%emt 00:00:09]} Ra1 {[%clk 00:14:48]} {[%emt
00:00:30]} 30. Qf5 {[%clk 00:07:01]} {[%emt 00:00:45]} Qc5 {[%clk 00:14:27]}
{[%emt 00:00:31]} 31. Qe6+ {[%clk 00:06:04]} {[%emt 00:01:08]} Kh8 {[%clk
00:14:28]} {[%emt 00:00:09]} 32. h4 {[%clk 00:05:23]} {[%emt 00:00:51]} Rxc1
{[%clk 00:14:32]} {[%emt 00:00:07]} 33. Rxc1 {[%clk 00:05:21]} {[%emt
00:00:12]} Qxc1+ {[%clk 00:14:40]} {[%emt 00:00:02]} 34. Kh2 {[%clk 00:05:29]}
Bxh4 {[%clk 00:14:40]} {[%emt 00:00:10]} 35. Kh3 {[%clk 00:04:42]} {[%emt
00:00:56]} Qh1+ {[%clk 00:14:46]} {[%emt 00:00:04]} 36. Kg4 {[%clk 00:04:51]}
{[%emt 00:00:02]} Qxg2+ {[%clk 00:14:54]} {[%emt 00:00:02]} 0-1

[Event "FIDE U16 Olympiad_boards_1-80"]
[Site "Eindhoven, Netherlands"]
[Date "2023.08.13"]
[Round "1.26"]
[White "Ahmad, Khagan"]
[Black "Jodorcovsky, Alejandro David"]
[Result "1-0"]
[TimeControl "2700+10"]
[WhiteElo "2163"]
[BlackElo "1633"]

1. d4 {[%clk 00:45:16]} {[%emt 00:00:04]} f5 {[%clk 00:45:03]} {[%emt
00:00:18]} 2. Bg5 {[%clk 00:45:18]} {[%emt 00:00:08]} h6 {[%clk 00:45:10]}
{[%emt 00:00:04]} 3. Bh4 {[%clk 00:45:25]} {[%emt 00:00:02]} g5 {[%clk
00:45:18]} {[%emt 00:00:03]} 4. Bg3 {[%clk 00:45:34]} {[%emt 00:00:01]} Nf6
{[%clk 00:45:17]} {[%emt 00:00:10]} 5. e3 {[%clk 00:45:35]} {[%emt 00:00:08]}
d6 {[%clk 00:45:26]} {[%emt 00:00:03]} 6. Bd3 {[%clk 00:45:24]} {[%emt
00:00:21]} e6 {[%clk 00:44:17]} {[%emt 00:01:18]} 7. Nc3 {[%clk 00:44:31]}
{[%emt 00:01:03]} Nc6 {[%clk 00:44:23]} {[%emt 00:00:04]} 8. h4 {[%clk
00:44:05]} {[%emt 00:00:36]} Rg8 {[%clk 00:44:23]} {[%emt 00:00:10]} 9. Nge2
{[%clk 00:40:59]} {[%emt 00:03:15]} a6 {[%clk 00:42:32]} {[%emt 00:02:02]} 10.
f3 {[%clk 00:40:20]} {[%emt 00:00:49]} Qe7 {[%clk 00:40:22]} {[%emt 00:02:20]}
11. hxg5 {[%clk 00:39:41]} {[%emt 00:00:50]} hxg5 {[%clk 00:40:29]} {[%emt
00:00:02]} 12. Qd2 {[%clk 00:39:49]} {[%emt 00:00:02]} Bd7 {[%clk 00:40:04]}
{[%emt 00:00:35]} 13. e4 {[%clk 00:39:53]} {[%emt 00:00:07]} fxe4 {[%clk
00:30:46]} {[%emt 00:09:27]} 14. Nxe4 {[%clk 00:39:59]} {[%emt 00:00:04]} Nxe4
{[%clk 00:30:43]} {[%emt 00:00:13]} 15. fxe4 {[%clk 00:39:59]} {[%emt
00:00:09]} Bg7 {[%clk 00:28:57]} {[%emt 00:01:57]} 16. O-O-O {[%clk 00:39:03]}
{[%emt 00:01:06]} O-O-O {[%clk 00:26:41]} {[%emt 00:02:27]} 17. Bf2 {[%clk
00:39:09]} {[%emt 00:00:04]} Rh8 {[%clk 00:22:52]} {[%emt 00:03:59]} 18. Be3
{[%clk 00:39:13]} {[%emt 00:00:05]} Bf6 {[%clk 00:22:54]} {[%emt 00:00:09]} 19.
c3 {[%clk 00:38:57]} {[%emt 00:00:25]} Rdg8 {[%clk 00:22:31]} {[%emt 00:00:32]}
20. Ng3 {[%clk 00:38:52]} {[%emt 00:00:16]} Be8 {[%clk 00:22:30]} {[%emt
00:00:11]} 21. Rdf1 {[%clk 00:38:36]} {[%emt 00:00:26]} Rh4 {[%clk 00:20:04]}
{[%emt 00:02:36]} 22. Bc4 {[%clk 00:36:21]} {[%emt 00:02:25]} Rgh8 {[%clk
00:19:27]} {[%emt 00:00:47]} 23. Rhg1 {[%clk 00:34:15]} {[%emt 00:02:16]} Na5
{[%clk 00:15:50]} {[%emt 00:03:47]} 24. Bd3 {[%clk 00:32:54]} {[%emt 00:01:31]}
Rh2 {[%clk 00:14:00]} {[%emt 00:02:00]} 25. e5 {[%clk 00:32:01]} {[%emt
00:01:04]} dxe5 {[%clk 00:14:01]} {[%emt 00:00:08]} 26. Ne4 {[%clk 00:32:06]}
{[%emt 00:00:05]} Bg7 {[%clk 00:12:53]} {[%emt 00:01:18]} 27. Bxg5 {[%clk
00:31:34]} {[%emt 00:00:42]} Qd7 {[%clk 00:13:01]} {[%emt 00:00:03]} 28. dxe5
{[%clk 00:30:15]} {[%emt 00:01:29]} Bxe5 {[%clk 00:11:00]} {[%emt 00:02:10]} 29.
Bf6 {[%clk 00:29:25]} {[%emt 00:01:00]} Bxf6 {[%clk 00:10:27]} {[%emt
00:00:44]} 30. Nxf6 {[%clk 00:29:33]} {[%emt 00:00:01]} Qa4 {[%clk 00:10:33]}
{[%emt 00:00:03]} 31. Nxe8 {[%clk 00:29:08]} {[%emt 00:00:36]} Rxe8 {[%clk
00:09:07]} {[%emt 00:01:36]} 32. Qf4 {[%clk 00:28:47]} {[%emt 00:00:30]} Qxf4+
{[%clk 00:08:48]} {[%emt 00:00:30]} 33. Rxf4 {[%clk 00:28:56]} {[%emt
00:00:01]} Rg8 {[%clk 00:07:32]} {[%emt 00:01:26]} 34. g4 {[%clk 00:28:51]}
{[%emt 00:00:15]} Rd8 {[%clk 00:07:17]} {[%emt 00:00:25]} 35. Rg3 {[%clk
00:27:22]} {[%emt 00:01:39]} Rh1+ {[%clk 00:06:41]} {[%emt 00:00:47]} 36. Kd2
{[%clk 00:26:46]} {[%emt 00:00:45]} Rh2+ {[%clk 00:06:43]} {[%emt 00:00:08]} 37.
Ke3 {[%clk 00:26:54]} {[%emt 00:00:02]} Nc6 {[%clk 00:04:36]} {[%emt 00:02:17]}
38. Be2 {[%clk 00:26:16]} {[%emt 00:00:47]} Ne7 {[%clk 00:04:19]} {[%emt
00:00:29]} 39. c4 {[%clk 00:26:24]} {[%emt 00:00:01]} Rg8 {[%clk 00:04:05]}
{[%emt 00:00:23]} 40. Rgf3 {[%clk 00:25:37]} {[%emt 00:00:57]} Ng6 {[%clk
00:03:30]} {[%emt 00:00:46]} 41. Rf6 {[%clk 00:25:12]} {[%emt 00:00:34]} Kd7
{[%clk 00:02:35]} {[%emt 00:01:07]} 42. Rf7+ {[%clk 00:24:57]} {[%emt
00:00:24]} Ne7 {[%clk 00:02:31]} {[%emt 00:00:14]} 43. Rf2 {[%clk 00:24:25]}
{[%emt 00:00:42]} Rxf2 {[%clk 00:02:10]} {[%emt 00:00:31]} 44. Rxf2 {[%clk
00:24:31]} {[%emt 00:00:04]} e5 {[%clk 00:01:37]} {[%emt 00:00:43]} 45. Ke4
{[%clk 00:24:16]} {[%emt 00:00:25]} Rg5 {[%clk 00:01:46]} {[%emt 00:00:02]} 46.
Rh2 {[%clk 00:24:16]} {[%emt 00:00:10]} Ke6 {[%clk 00:01:26]} {[%emt 00:00:30]}
47. Rh6+ {[%clk 00:24:20]} {[%emt 00:00:05]} Rg6 {[%clk 00:01:34]} {[%emt
00:00:02]} 48. Rxg6+ {[%clk 00:24:03]} {[%emt 00:00:27]} Nxg6 {[%clk 00:01:43]}
{[%emt 00:00:01]} 49. g5 {[%clk 00:24:12]} {[%emt 00:00:02]} Ne7 {[%clk
00:00:39]} {[%emt 00:01:13]} 50. c5 {[%clk 00:24:14]} {[%emt 00:00:08]} Nc6
{[%clk 00:00:45]} {[%emt 00:00:05]} 51. Bc4+ {[%clk 00:24:17]} {[%emt
00:00:06]} Ke7 {[%clk 00:00:53]} {[%emt 00:00:02]} 52. a3 {[%clk 00:24:20]}
{[%emt 00:00:06]} Nd8 {[%clk 00:00:12]} {[%emt 00:00:52]} 53. Kxe5 {[%clk
00:24:25]} {[%emt 00:00:06]} Nc6+ {[%clk 00:00:17]} {[%emt 00:00:04]} 54. Ke4
{[%clk 00:24:31]} {[%emt 00:00:03]} Nd8 {[%clk 00:00:24]} {[%emt 00:00:04]} 55.
Bd5 {[%clk 00:24:40]} {[%emt 00:00:02]} Kf8 {[%clk 00:00:14]} {[%emt 00:00:19]}
56. Kf5 {[%clk 00:24:43]} {[%emt 00:00:06]} Kg7 {[%clk 00:00:23]} {[%emt
00:00:02]} 57. g6 {[%clk 00:24:52]} {[%emt 00:00:01]} c6 {[%clk 00:00:12]}
{[%emt 00:00:21]} 58. Be4 {[%clk 00:24:44]} {[%emt 00:00:16]} a5 {[%clk
00:00:12]} {[%emt 00:00:12]} 59. a4 {[%clk 00:24:51]} {[%emt 00:00:03]} 1-0

[Event "FIDE U16 Olympiad_boards_1-80"]
[Site "Eindhoven, Netherlands"]
[Date "2023.08.13"]
[Round "1.27"]
[White "Caceres Benitez, Fernando Israel"]
[Black "Azadaliyev, Jahandar"]
[Result "0-1"]
[TimeControl "2700+10"]
[WhiteElo "1772"]
[BlackElo "2156"]

1. e4 {[%clk 00:45:13]} {[%emt 00:00:06]} c6 {[%clk 00:45:17]} {[%emt
00:00:03]} 2. d4 {[%clk 00:44:55]} {[%emt 00:00:28]} d5 {[%clk 00:45:21]}
{[%emt 00:00:06]} 3. e5 {[%clk 00:44:47]} {[%emt 00:00:18]} Bf5 {[%clk
00:45:15]} {[%emt 00:00:16]} 4. Nd2 {[%clk 00:44:23]} {[%emt 00:00:34]} e6
{[%clk 00:45:07]} {[%emt 00:00:17]} 5. Nb3 {[%clk 00:44:16]} {[%emt 00:00:18]}
Nd7 {[%clk 00:44:53]} {[%emt 00:00:24]} 6. Be3 {[%clk 00:44:08]} {[%emt
00:00:17]} h6 {[%clk 00:44:29]} {[%emt 00:00:34]} 7. Nf3 {[%clk 00:42:54]}
{[%emt 00:01:24]} Bh7 {[%clk 00:44:26]} {[%emt 00:00:13]} 8. Be2 {[%clk
00:42:43]} {[%emt 00:00:22]} Ne7 {[%clk 00:44:32]} {[%emt 00:00:04]} 9. O-O
{[%clk 00:41:55]} {[%emt 00:00:58]} Nf5 {[%clk 00:44:34]} {[%emt 00:00:08]} 10.
a4 {[%clk 00:41:29]} {[%emt 00:00:35]} Be7 {[%clk 00:44:31]} {[%emt 00:00:13]}
11. a5 {[%clk 00:40:01]} {[%emt 00:01:39]} Qc7 {[%clk 00:42:50]} {[%emt
00:01:50]} 12. Qd2 {[%clk 00:34:41]} {[%emt 00:05:30]} O-O {[%clk 00:42:23]}
{[%emt 00:00:38]} 13. Rac1 {[%clk 00:33:02]} {[%emt 00:01:46]} Nxe3 {[%clk
00:39:12]} {[%emt 00:03:24]} 14. fxe3 {[%clk 00:33:01]} {[%emt 00:00:10]} f6
{[%clk 00:38:49]} {[%emt 00:00:34]} 15. c4 {[%clk 00:29:16]} {[%emt 00:03:55]}
fxe5 {[%clk 00:38:37]} {[%emt 00:00:22]} 16. cxd5 {[%clk 00:29:16]} {[%emt
00:00:10]} exd5 {[%clk 00:38:43]} {[%emt 00:00:04]} 17. dxe5 {[%clk 00:29:04]}
{[%emt 00:00:22]} Be4 {[%clk 00:37:58]} {[%emt 00:00:56]} 18. Nbd4 {[%clk
00:28:03]} {[%emt 00:01:09]} Bxf3 {[%clk 00:25:14]} {[%emt 00:12:55]} 19. Nxf3
{[%clk 00:26:54]} {[%emt 00:01:19]} Rac8 {[%clk 00:21:06]} {[%emt 00:04:19]} 20.
a6 {[%clk 00:24:45]} {[%emt 00:02:18]} b6 {[%clk 00:19:21]} {[%emt 00:01:56]}
21. e6 {[%clk 00:11:47]} {[%emt 00:13:07]} Nc5 {[%clk 00:18:46]} {[%emt
00:00:45]} 22. Nd4 {[%clk 00:08:57]} {[%emt 00:03:01]} Bd6 {[%clk 00:17:57]}
{[%emt 00:00:58]} 23. Bf3 {[%clk 00:05:58]} {[%emt 00:03:09]} Bxh2+ {[%clk
00:15:34]} {[%emt 00:02:33]} 24. Kh1 {[%clk 00:06:06]} {[%emt 00:00:02]} Be5
{[%clk 00:15:42]} {[%emt 00:00:03]} 25. Nxc6 {[%clk 00:03:11]} {[%emt
00:03:04]} Qxc6 {[%clk 00:13:38]} {[%emt 00:02:13]} 26. Bxd5 {[%clk 00:02:27]}
{[%emt 00:00:55]} Rxf1+ {[%clk 00:13:34]} {[%emt 00:00:14]} 27. Rxf1 {[%clk
00:02:32]} Qa4 {[%clk 00:09:30]} {[%emt 00:04:19]} 28. e7+ {[%clk 00:01:13]}
{[%emt 00:01:30]} Kh7 {[%clk 00:09:30]} {[%emt 00:00:09]} 29. Qf2 {[%clk
00:01:21]} {[%emt 00:00:02]} Qg4 {[%clk 00:09:09]} {[%emt 00:00:31]} 30. Qf5+
{[%clk 00:00:30]} {[%emt 00:01:01]} Qxf5 {[%clk 00:09:17]} {[%emt 00:00:02]} 31.
Rxf5 {[%clk 00:00:38]} Nd7 {[%clk 00:08:05]} {[%emt 00:01:24]} 32. Be6 {[%clk
00:00:44]} {[%emt 00:00:04]} Rc1+ {[%clk 00:08:13]} {[%emt 00:00:02]} 0-1

[Event "FIDE U16 Olympiad_boards_1-80"]
[Site "Eindhoven, Netherlands"]
[Date "2023.08.13"]
[Round "1.28"]
[White "Abdinova, Narmin"]
[Black "Mayeregger Gonzalez, Renata"]
[Result "1-0"]
[TimeControl "2700+10"]
[WhiteElo "1804"]
[BlackElo "1407"]

1. d4 {[%clk 00:45:07]} {[%emt 00:00:12]} c5 {[%clk 00:45:11]} {[%emt
00:00:10]} 2. d5 {[%clk 00:45:09]} {[%emt 00:00:08]} e6 {[%clk 00:45:16]}
{[%emt 00:00:05]} 3. c4 {[%clk 00:45:16]} {[%emt 00:00:04]} exd5 {[%clk
00:45:22]} {[%emt 00:00:03]} 4. cxd5 {[%clk 00:45:22]} {[%emt 00:00:03]} d6
{[%clk 00:45:31]} {[%emt 00:00:02]} 5. Nc3 {[%clk 00:45:26]} {[%emt 00:00:06]}
g6 {[%clk 00:45:39]} {[%emt 00:00:02]} 6. Nf3 {[%clk 00:45:22]} {[%emt
00:00:14]} Bg7 {[%clk 00:45:45]} {[%emt 00:00:03]} 7. g3 {[%clk 00:45:29]}
{[%emt 00:00:03]} Nf6 {[%clk 00:45:38]} {[%emt 00:00:18]} 8. Bg2 {[%clk
00:45:32]} {[%emt 00:00:08]} O-O {[%clk 00:45:06]} {[%emt 00:00:41]} 9. O-O
{[%clk 00:45:23]} {[%emt 00:00:18]} a6 {[%clk 00:44:05]} {[%emt 00:01:12]} 10.
a4 {[%clk 00:44:47]} {[%emt 00:00:46]} Re8 {[%clk 00:42:28]} {[%emt 00:01:47]}
11. Nd2 {[%clk 00:44:19]} {[%emt 00:00:36]} Nbd7 {[%clk 00:40:57]} {[%emt
00:01:43]} 12. Nc4 {[%clk 00:41:16]} {[%emt 00:03:12]} Nb6 {[%clk 00:38:30]}
{[%emt 00:02:38]} 13. Na3 {[%clk 00:37:21]} {[%emt 00:04:04]} h6 {[%clk
00:36:05]} {[%emt 00:02:35]} 14. a5 {[%clk 00:35:25]} {[%emt 00:02:06]} Nbd7
{[%clk 00:33:03]} {[%emt 00:03:12]} 15. Nc4 {[%clk 00:35:30]} {[%emt 00:00:05]}
Ne5 {[%clk 00:32:52]} {[%emt 00:00:23]} 16. Nxe5 {[%clk 00:31:24]} {[%emt
00:04:15]} Rxe5 {[%clk 00:32:45]} {[%emt 00:00:17]} 17. e4 {[%clk 00:31:07]}
{[%emt 00:00:27]} Re8 {[%clk 00:32:09]} {[%emt 00:00:47]} 18. Re1 {[%clk
00:29:45]} {[%emt 00:01:31]} Ng4 {[%clk 00:21:54]} {[%emt 00:10:26]} 19. h3
{[%clk 00:26:46]} {[%emt 00:03:08]} Ne5 {[%clk 00:21:33]} {[%emt 00:00:31]} 20.
Bf1 {[%clk 00:22:24]} {[%emt 00:04:32]} f5 {[%clk 00:17:40]} {[%emt 00:04:03]}
21. f4 {[%clk 00:20:48]} {[%emt 00:01:46]} Nf7 {[%clk 00:17:39]} {[%emt
00:00:11]} 22. exf5 {[%clk 00:17:44]} {[%emt 00:03:14]} Bxf5 {[%clk 00:17:28]}
{[%emt 00:00:21]} 23. g4 {[%clk 00:17:52]} {[%emt 00:00:03]} Bd4+ {[%clk
00:17:05]} {[%emt 00:00:33]} 24. Kh2 {[%clk 00:14:16]} {[%emt 00:03:46]} Qh4
{[%clk 00:13:02]} {[%emt 00:04:12]} 25. Bd2 {[%clk 00:13:51]} {[%emt 00:00:34]}
Qf2+ {[%clk 00:09:38]} {[%emt 00:03:36]} 26. Bg2 {[%clk 00:13:52]} {[%emt
00:00:08]} Bd3 {[%clk 00:07:09]} {[%emt 00:02:38]} 27. Re6 {[%clk 00:11:51]}
{[%emt 00:02:12]} g5 {[%clk 00:03:34]} {[%emt 00:03:45]} 28. Qe1 {[%clk
00:11:11]} {[%emt 00:00:49]} Qxe1 {[%clk 00:01:13]} {[%emt 00:02:31]} 29. Raxe1
{[%clk 00:11:11]} {[%emt 00:00:10]} Rf8 {[%clk 00:01:20]} {[%emt 00:00:04]} 30.
Ne4 {[%clk 00:04:36]} {[%emt 00:06:44]} gxf4 {[%emt 00:00:41]} 31. Bxf4 {[%clk
00:03:26]} {[%emt 00:01:18]} Ne5 {[%clk 00:00:21]} {[%emt 00:00:41]} 32. Bxh6
{[%clk 00:01:41]} {[%emt 00:01:55]} Nf3+ {[%clk 00:00:13]} {[%emt 00:00:18]} 33.
Bxf3 {[%clk 00:01:50]} Rxf3 {[%emt 00:00:02]} 34. Ng5 {[%clk 00:01:47]} {[%emt
00:00:10]} Rf2+ {[%clk 00:00:20]} {[%emt 00:00:15]} 35. Kg3 {[%clk 00:01:52]}
{[%emt 00:00:02]} Rxb2 {[%clk 00:00:11]} {[%emt 00:00:21]} 36. Re8+ {[%clk
00:01:56]} {[%emt 00:00:06]} 1-0

[Event "FIDE U16 Olympiad_boards_1-80"]
[Site "Eindhoven, Netherlands"]
[Date "2023.08.13"]
[Round "1.29"]
[White "Pichon, Ewen"]
[Black "Laamim, Roaa"]
[Result "1-0"]
[TimeControl "2700+10"]
[WhiteElo "2194"]
[BlackElo "1626"]

1. d4 {[%clk 00:45:19]} d5 {[%clk 00:45:19]} 2. c4 {[%clk 00:45:28]} e6 {[%clk
00:45:28]} {[%emt 00:00:01]} 3. Nc3 {[%clk 00:45:34]} {[%emt 00:00:04]} Nf6
{[%emt 00:00:05]} 4. cxd5 {[%clk 00:45:11]} {[%emt 00:00:30]} exd5 {[%clk
00:45:44]} {[%emt 00:00:02]} 5. Bg5 {[%clk 00:45:20]} {[%emt 00:00:01]} Be7
{[%clk 00:45:50]} {[%emt 00:00:05]} 6. e3 {[%clk 00:45:28]} {[%emt 00:00:01]}
O-O {[%clk 00:45:44]} {[%emt 00:00:17]} 7. Bd3 {[%clk 00:45:36]} {[%emt
00:00:02]} Nbd7 {[%clk 00:45:44]} {[%emt 00:00:10]} 8. Qc2 {[%clk 00:45:43]}
{[%emt 00:00:02]} c6 {[%clk 00:45:48]} {[%emt 00:00:06]} 9. Nge2 {[%clk
00:45:52]} {[%emt 00:00:02]} Re8 {[%clk 00:45:57]} 10. O-O {[%clk 00:45:56]}
{[%emt 00:00:05]} h6 {[%clk 00:45:41]} {[%emt 00:00:26]} 11. Bh4 {[%clk
00:45:58]} {[%emt 00:00:08]} a5 {[%clk 00:44:48]} {[%emt 00:01:04]} 12. Rae1
{[%clk 00:45:11]} {[%emt 00:00:56]} Ne4 {[%clk 00:40:47]} {[%emt 00:04:11]} 13.
Bxe7 {[%clk 00:45:19]} {[%emt 00:00:02]} Qxe7 {[%clk 00:40:56]} {[%emt
00:00:02]} 14. f3 {[%clk 00:45:21]} {[%emt 00:00:07]} Nxc3 {[%clk 00:38:24]}
{[%emt 00:02:42]} 15. Nxc3 {[%clk 00:45:30]} {[%emt 00:00:02]} Qg5 {[%clk
00:38:26]} {[%emt 00:00:07]} 16. Qf2 {[%clk 00:44:17]} {[%emt 00:01:23]} b6
{[%clk 00:34:31]} {[%emt 00:04:05]} 17. e4 {[%clk 00:44:01]} {[%emt 00:00:25]}
Bb7 {[%clk 00:32:15]} {[%emt 00:02:27]} 18. e5 {[%clk 00:43:31]} {[%emt
00:00:40]} Nf8 {[%clk 00:31:45]} {[%emt 00:00:41]} 19. f4 {[%clk 00:43:38]}
{[%emt 00:00:03]} Qd8 {[%clk 00:29:11]} {[%emt 00:02:44]} 20. f5 {[%clk
00:42:42]} {[%emt 00:01:05]} Ba6 {[%clk 00:28:54]} {[%emt 00:00:27]} 21. Bxa6
{[%clk 00:39:25]} {[%emt 00:03:27]} Rxa6 {[%clk 00:29:02]} {[%emt 00:00:02]} 22.
Re3 {[%clk 00:39:25]} {[%emt 00:00:09]} Qd7 {[%clk 00:25:04]} {[%emt 00:04:09]}
23. f6 {[%clk 00:36:54]} {[%emt 00:02:41]} g6 {[%clk 00:22:44]} {[%emt
00:02:30]} 24. Rh3 {[%clk 00:36:53]} {[%emt 00:00:11]} h5 {[%clk 00:20:32]}
{[%emt 00:02:23]} 25. Ne2 {[%clk 00:36:43]} {[%emt 00:00:19]} Ne6 {[%clk
00:16:55]} {[%emt 00:03:47]} 26. Qe3 {[%clk 00:36:24]} {[%emt 00:00:29]} c5
{[%clk 00:16:01]} {[%emt 00:01:04]} 27. Qh6 {[%clk 00:36:14]} {[%emt 00:00:19]}
Ra7 {[%clk 00:13:32]} {[%emt 00:02:40]} 28. Rxh5 {[%clk 00:35:22]} {[%emt
00:01:02]} gxh5 {[%clk 00:13:34]} {[%emt 00:00:09]} 29. Rf5 {[%clk 00:35:31]}
{[%emt 00:00:01]} 1-0

[Event "FIDE U16 Olympiad_boards_1-80"]
[Site "Eindhoven, Netherlands"]
[Date "2023.08.13"]
[Round "1.30"]
[White "Najimi, Mohamed Khalil"]
[Black "Schippke, Manon"]
[Result "0-1"]
[TimeControl "2700+10"]
[WhiteElo "1812"]
[BlackElo "2120"]

1. e4 {[%clk 00:45:19]} c5 {[%clk 00:45:13]} {[%emt 00:00:08]} 2. d4 {[%clk
00:45:15]} {[%emt 00:00:14]} cxd4 {[%clk 00:45:15]} {[%emt 00:00:07]} 3. c3
{[%clk 00:45:23]} {[%emt 00:00:02]} Nf6 {[%clk 00:44:44]} {[%emt 00:00:41]} 4.
e5 {[%clk 00:45:03]} {[%emt 00:00:30]} Nd5 {[%clk 00:44:53]} {[%emt 00:00:02]}
5. cxd4 {[%clk 00:45:04]} {[%emt 00:00:08]} d6 {[%clk 00:44:57]} {[%emt
00:00:06]} 6. exd6 {[%clk 00:43:56]} {[%emt 00:01:18]} e6 {[%clk 00:44:38]}
{[%emt 00:00:30]} 7. Nc3 {[%clk 00:42:51]} {[%emt 00:01:15]} Bxd6 {[%clk
00:43:04]} {[%emt 00:01:43]} 8. Nf3 {[%clk 00:42:14]} {[%emt 00:00:48]} O-O
{[%clk 00:41:58]} {[%emt 00:01:15]} 9. Bc4 {[%clk 00:40:52]} {[%emt 00:01:33]}
Nxc3 {[%clk 00:38:10]} {[%emt 00:03:58]} 10. bxc3 {[%clk 00:41:00]} {[%emt
00:00:02]} Qc7 {[%clk 00:38:14]} {[%emt 00:00:05]} 11. Qd3 {[%clk 00:35:02]}
{[%emt 00:06:08]} Nd7 {[%clk 00:34:06]} {[%emt 00:04:18]} 12. Bb3 {[%clk
00:27:43]} {[%emt 00:07:30]} h6 {[%clk 00:33:03]} {[%emt 00:01:13]} 13. Bc2
{[%clk 00:25:56]} {[%emt 00:01:56]} Nf6 {[%clk 00:32:32]} {[%emt 00:00:42]} 14.
O-O {[%clk 00:25:28]} {[%emt 00:00:38]} Rd8 {[%clk 00:30:57]} {[%emt 00:01:44]}
15. Re1 {[%clk 00:21:51]} {[%emt 00:03:47]} b6 {[%clk 00:27:01]} {[%emt
00:04:06]} 16. a4 {[%clk 00:19:43]} {[%emt 00:02:18]} Bb7 {[%clk 00:23:59]}
{[%emt 00:03:12]} 17. Ba3 {[%clk 00:18:30]} {[%emt 00:01:23]} Rac8 {[%clk
00:22:59]} {[%emt 00:01:11]} 18. Bxd6 {[%clk 00:17:43]} {[%emt 00:00:57]} Rxd6
{[%clk 00:21:47]} {[%emt 00:01:21]} 19. Rac1 {[%clk 00:17:45]} {[%emt
00:00:08]} Rc6 {[%clk 00:18:39]} {[%emt 00:03:19]} 20. Re3 {[%clk 00:09:32]}
{[%emt 00:08:23]} Kf8 {[%clk 00:13:34]} {[%emt 00:05:15]} 21. Bb3 {[%clk
00:05:08]} {[%emt 00:04:34]} Ng4 {[%clk 00:12:44]} {[%emt 00:01:00]} 22. Ne5
{[%clk 00:00:32]} {[%emt 00:04:46]} Nxe3 {[%clk 00:12:21]} {[%emt 00:00:32]} 23.
Qh7 {[%clk 00:00:26]} {[%emt 00:00:17]} Rxc3 {[%clk 00:10:49]} {[%emt
00:01:42]} 24. Re1 {[%clk 00:00:16]} {[%emt 00:00:19]} Rc1 {[%clk 00:10:04]}
{[%emt 00:00:54]} 25. Qh8+ {[%clk 00:00:12]} {[%emt 00:00:15]} Ke7 {[%clk
00:10:11]} {[%emt 00:00:04]} 26. Ng6+ {[%clk 00:00:15]} {[%emt 00:00:07]} Kf6
{[%clk 00:10:11]} {[%emt 00:00:10]} 0-1